bitfinex/quotes_BTCUSD_20251113
["timestamp","ask_amount","ask_price","bid_price","bid_amount"]
[1763019519469,0.52328726,103710.0,103700.0,0.101872]
[1763019519668,0.59650726,103710.0,103700.0,0.063052]
[1763019519942,0.59750726,103710.0,103700.0,0.083052]
[1763019520149,0.59750726,103710.0,103700.0,0.043052]
[1763019520682,0.59750726,103710.0,103700.0,0.083052]
[1763019521367,0.59750726,103710.0,103700.0,0.063052]
[1763019522384,0.59750726,103710.0,103700.0,0.083052]
[1763019522586,0.59750726,103710.0,103700.0,0.063052]
[1763019522854,0.59750726,103710.0,103700.0,0.043052]
[1763019523056,0.89220909,103710.0,103700.0,0.043052]
[1763019523265,0.89220909,103710.0,103700.0,0.063052]
[1763019523489,0.89220909,103710.0,103700.0,0.043052]
[1763019524265,0.89220909,103710.0,103700.0,0.063052]
[1763019524978,1.62978007,103710.0,103700.0,0.043052]
[1763019525204,1.62978007,103710.0,103700.0,0.063052]
[1763019525833,1.62978007,103710.0,103700.0,0.043052]
[1763019526474,1.62978007,103710.0,103700.0,0.063052]
[1763019527086,1.62978007,103710.0,103700.0,0.043052]
[1763019528155,1.62978007,103710.0,103700.0,0.063052]
[1763019528376,1.62978007,103710.0,103700.0,0.043052]
[1763019528611,1.62978007,103710.0,103700.0,0.063052]
[1763019528833,1.62978007,103710.0,103700.0,0.043052]
[1763019530369,1.62978007,103710.0,103700.0,0.063052]
[1763019530787,1.62978007,103710.0,103700.0,0.043052]
[1763019531084,1.62978007,103710.0,103700.0,0.000732]
[1763019531319,1.6587314,103710.0,103700.0,0.000732]
[1763019531805,1.6587314,103710.0,103700.0,0.020732]
[1763019532040,1.6587314,103710.0,103700.0,0.000732]
[1763019532516,1.6587314,103710.0,103700.0,0.020732]
[1763019533023,1.6587314,103710.0,103700.0,0.000732]
[1763019533227,1.62978007,103710.0,103700.0,0.000732]
[1763019533415,1.62978007,103710.0,103700.0,0.020732]
[1763019534036,1.62978007,103710.0,103700.0,0.000732]
[1763019534239,0.74513031,103710.0,103700.0,0.043052]
[1763019534443,0.48006488,103710.0,103700.0,0.063052]
[1763019534649,0.48006488,103710.0,103700.0,0.083052]
[1763019535078,0.55228488,103710.0,103700.0,0.083052]
[1763019535476,0.67291031,103710.0,103700.0,0.043052]
[1763019535683,0.96629275,103710.0,103700.0,0.063052]
[1763019535884,0.96629275,103710.0,103700.0,0.043052]
[1763019536037,0.96629275,103710.0,103700.0,0.063052]
[1763019537590,0.96629275,103710.0,103700.0,0.043052]
[1763019537748,0.96629275,103710.0,103700.0,0.063052]
[1763019538361,0.96629275,103710.0,103700.0,0.043052]
[1763019538667,0.96629275,103710.0,103700.0,0.063052]
[1763019540019,0.96629275,103710.0,103700.0,0.020732]
[1763019540245,0.96629275,103710.0,103700.0,0.063052]
[1763019541458,0.96629275,103710.0,103700.0,0.020732]
[1763019541657,1.62978007,103710.0,103700.0,0.000732]
[1763019542067,1.95278007,103710.0,103700.0,0.000732]
[1763019542613,1.98173269,103710.0,103700.0,0.020732]
[1763019542737,1.98073269,103710.0,103700.0,0.000732]
[1763019542925,1.98073269,103710.0,103700.0,0.020732]
[1763019543134,1.97973269,103710.0,103700.0,0.020732]
[1763019543847,1.97973269,103710.0,103700.0,0.000732]
[1763019544049,1.97973269,103710.0,103700.0,0.020732]
[1763019544878,1.97973269,103710.0,103700.0,0.000732]
[1763019545504,2.22223269,103710.0,103700.0,0.020732]
[1763019545718,2.22223269,103710.0,103700.0,0.000732]
[1763019555247,2.25311453,103710.0,103700.0,2e-06]
[1763019555522,0.19286403,103700.0,103690.0,0.0004]
[1763019555650,1.60817796,103700.0,103690.0,0.0004]
[1763019556318,1.63713516,103700.0,103690.0,0.0004]
[1763019556721,1.96013516,103700.0,103690.0,0.0004]
[1763019557068,1.96113516,103700.0,103690.0,0.0004]
[1763019557775,2.00875311,103700.0,103690.0,0.0004]
[1763019557982,1.96213516,103700.0,103690.0,0.0004]
[1763019561247,1.96213516,103700.0,103690.0,0.00064198]
[1763019562865,0.19288263,103690.0,103680.0,0.0004]
[1763019563135,1.79963727,103690.0,103680.0,0.0004]
[1763019563377,1.86715727,103690.0,103680.0,0.0004]
[1763019563585,0.56018263,103690.0,103680.0,0.0004]
[1763019563803,1.88715727,103690.0,103680.0,0.0004]
[1763019564916,2.21015727,103690.0,103680.0,0.0004]
[1763019566019,2.23838221,103690.0,103680.0,0.0004]
[1763019566234,1.96765727,103690.0,103680.0,0.0004]
[1763019566666,1.96765727,103690.0,103680.0,0.0024]
[1763019567138,1.96765727,103690.0,103680.0,0.0044]
[1763019568381,1.96765727,103690.0,103680.0,0.00464202]
[1763019568838,1.96765727,103690.0,103680.0,0.00464202]
[1763019569188,0.51590123,103680.0,103670.0,0.02]
[1763019569401,0.19291984,103670.0,103660.0,8e-05]
[1763019569616,1.62579448,103670.0,103660.0,8e-05]
[1763019569832,1.65667632,103670.0,103660.0,0.02008]
[1763019570504,1.65667632,103670.0,103660.0,8e-05]
[1763019570788,1.65767632,103670.0,103660.0,0.02008]
[1763019571040,1.94979448,103670.0,103660.0,8e-05]
[1763019571236,0.65470168,103670.0,103660.0,8e-05]
[1763019571446,0.65278392,103670.0,103660.0,0.02008]
[1763019571680,1.97975856,103670.0,103660.0,8e-05]
[1763019571874,1.97975856,103670.0,103660.0,0.02008]
[1763019572292,1.31627124,103670.0,103660.0,0.02008]
[1763019572906,1.31627124,103670.0,103660.0,8e-05]
[1763019573110,0.65278392,103670.0,103660.0,0.02008]
[1763019573318,1.97975856,103670.0,103660.0,8e-05]
[1763019574316,2.0106404,103670.0,103660.0,8e-05]
[1763019574586,2.0106404,103670.0,103660.0,0.02008]
[1763019574789,2.0106404,103670.0,103660.0,8e-05]
[1763019574993,2.0106404,103670.0,103660.0,0.02008]
[1763019575198,2.0106404,103670.0,103660.0,0.02056415]
[1763019575417,2.0106404,103670.0,103660.0,0.00056415]
[1763019576034,0.65278392,103670.0,103660.0,0.00056415]
[1763019576245,1.0951088,103670.0,103660.0,0.02056415]
[1763019576487,0.65278392,103670.0,103660.0,0.04056415]
[1763019576739,1.97975856,103670.0,103660.0,0.00056415]
[1763019576925,1.31627124,103670.0,103660.0,0.02056415]
[1763019577576,1.31627124,103670.0,103660.0,0.00056415]
[1763019577797,1.31627124,103670.0,103660.0,0.02056415]
[1763019578284,1.97975856,103670.0,103660.0,0.00056415]
[1763019579577,1.97975856,103670.0,103660.0,0.02056415]
[1763019580013,2.0106404,103670.0,103660.0,0.02056415]
[1763019580459,1.31627124,103670.0,103660.0,0.02056415]
[1763019581131,1.31627124,103670.0,103660.0,0.00056415]
[1763019581132,1.53743368,103670.0,103660.0,0.00056415]
[1763019581757,1.31627124,103670.0,103660.0,0.00056415]
[1763019581974,1.31627124,103670.0,103660.0,0.02056415]
[1763019582217,1.31627124,103670.0,103660.0,0.00056415]
[1763019582426,1.31627124,103670.0,103660.0,0.02056415]
[1763019583052,1.97975856,103670.0,103660.0,0.02056415]
[1763019583280,0.30081984,103670.0,103660.0,0.04056415]
[1763019583515,0.45446228,103670.0,103660.0,0.07133415]
[1763019583726,0.26154244,103670.0,103660.0,0.07133415]
[1763019583879,0.32367244,103670.0,103660.0,0.07133415]
[1763019584090,0.26154244,103670.0,103660.0,0.07133415]
[1763019584317,0.002,103670.0,103660.0,0.17773415]
[1763019584694,0.002,103670.0,103660.0,0.58005903]
[1763019584918,0.001,103670.0,103660.0,1.13599748]
[1763019585161,0.03151,103680.0,103660.0,1.13599748]
[1763019585308,0.66618164,103690.0,103670.0,0.13717]
[1763019585505,0.66618164,103690.0,103680.0,0.04]
[1763019585766,0.02133,103690.0,103680.0,0.07077]
[1763019585949,0.48073507,103690.0,103680.0,0.11436]
[1763019586156,0.28785244,103690.0,103680.0,0.11436]
[1763019586669,0.50901488,103690.0,103680.0,0.11436]
[1763019587060,0.36154993,103690.0,103680.0,0.11436]
[1763019587246,0.02133,103690.0,103680.0,0.17717]
[1763019587459,0.21421263,103690.0,103680.0,0.17717]
[1763019587630,0.02133,103690.0,103680.0,0.17717]
[1763019587837,0.21421263,103690.0,103680.0,0.11436]
[1763019588040,0.55443256,103690.0,103680.0,0.05077]
[1763019588640,0.55543256,103690.0,103680.0,0.03077]
[1763019589120,0.61956256,103690.0,103680.0,0.05077]
[1763019589326,0.61956256,103690.0,103680.0,0.07077]
[1763019589843,0.61956256,103690.0,103680.0,0.05077]
[1763019590040,0.61956256,103690.0,103680.0,0.03077]
[1763019590260,0.61956256,103690.0,103680.0,0.02]
[1763019590533,0.61956256,103690.0,103680.0,0.04]
[1763019591180,0.61956256,103690.0,103670.0,0.09382205]
[1763019591391,0.52518116,103680.0,103670.0,0.02024205]
[1763019591605,0.58731116,103680.0,103670.0,0.02024205]
[1763019591813,0.58731116,103680.0,103670.0,0.04024205]
[1763019591990,0.52518116,103680.0,103670.0,0.02024205]
[1763019592203,0.23032123,103680.0,103670.0,0.02024205]
[1763019592589,0.58731116,103680.0,103670.0,0.02024205]
[1763019593007,0.58931116,103680.0,103670.0,0.02024205]
[1763019593470,0.58931116,103680.0,103670.0,0.04024205]
[1763019593672,0.88417109,103680.0,103670.0,0.04024205]
[1763019593910,0.58931116,103680.0,103670.0,0.04024205]
[1763019594275,0.58931116,103680.0,103670.0,0.02024205]
[1763019594478,0.58931116,103680.0,103670.0,0.04024205]
[1763019594683,0.58931116,103680.0,103670.0,0.02024205]
[1763019594908,0.58931116,103680.0,103670.0,0.04024205]
[1763019595140,0.58931116,103680.0,103670.0,0.02024205]
[1763019595515,0.58931116,103680.0,103670.0,0.04024205]
[1763019595719,0.58931116,103680.0,103670.0,0.02024205]
[1763019596115,0.88417109,103680.0,103670.0,0.02024205]
[1763019596455,0.29445123,103680.0,103670.0,0.02024205]
[1763019596691,0.88417109,103680.0,103670.0,0.02024205]
[1763019599774,0.88417109,103680.0,103670.0,0.04024205]
[1763019600413,0.88417109,103680.0,103670.0,0.02024205]
[1763019601086,0.88417109,103680.0,103670.0,0.00024205]
[1763019601335,1.20717109,103680.0,103670.0,0.00024205]
[1763019601558,1.23613022,103680.0,103670.0,0.02024205]
[1763019601780,1.20717109,103680.0,103670.0,0.00024205]
[1763019601987,1.20717109,103680.0,103670.0,0.02024205]
[1763019602412,0.29445123,103680.0,103670.0,0.04024205]
[1763019602655,0.52718116,103680.0,103670.0,0.02024205]
[1763019602875,0.52718116,103680.0,103670.0,0.07134205]
[1763019603092,0.52718116,103680.0,103670.0,0.11382205]
[1763019603512,0.52718116,103680.0,103670.0,0.13405205]
[1763019603513,0.03351,103680.0,103670.0,0.13405205]
[1763019603649,0.002,103680.0,103670.0,0.17405205]
[1763019604287,0.002,103680.0,103670.0,0.15405205]
[1763019604508,0.002,103680.0,103670.0,0.17405205]
[1763019604908,0.002,103680.0,103670.0,0.36697189]
[1763019605067,0.002,103680.0,103670.0,0.17405205]
[1763019605681,0.002,103680.0,103670.0,0.36697189]
[1763019606523,0.002,103680.0,103670.0,1.02825056]
[1763019606776,0.00066473,103680.0,103670.0,1.02825056]
[1763019606984,0.00066473,103680.0,103670.0,1.05720025]
[1763019607778,0.53749922,103700.0,103690.0,0.04]
[1763019608022,0.00013929,103700.0,103690.0,0.10868]
[1763019608223,0.00013929,103700.0,103690.0,0.17149]
[1763019608639,0.00013929,103700.0,103690.0,0.13149]
[1763019608844,0.00013929,103700.0,103690.0,0.36437263]
[1763019609075,0.00213929,103700.0,103690.0,0.36437263]
[1763019609296,0.00213929,103700.0,103690.0,1.0256513]
[1763019609747,0.00213929,103700.0,103690.0,1.07154876]
[1763019609978,0.00213929,103700.0,103690.0,1.32640869]
[1763019610198,0.00213929,103700.0,103690.0,1.07154876]
[1763019610431,0.00013929,103700.0,103690.0,1.07154876]
[1763019611380,0.00013929,103700.0,103690.0,1.07554876]
[1763019611806,0.00013929,103700.0,103690.0,1.08501038]
[1763019612237,0.00013929,103700.0,103690.0,1.37987031]
[1763019612450,0.00013929,103700.0,103690.0,1.49563031]
[1763019612915,0.00013929,103700.0,103690.0,1.20077038]
[1763019613158,0.00013929,103700.0,103690.0,1.49563031]
[1763019613836,0.00013929,103700.0,103690.0,1.60077038]
[1763019614051,0.00013929,103700.0,103690.0,1.89563031]
[1763019615400,0.00013929,103700.0,103690.0,1.30591045]
[1763019615582,0.00013929,103700.0,103690.0,1.89563031]
[1763019616249,0.00013929,103700.0,103690.0,1.60077038]
[1763019617321,0.00013929,103700.0,103690.0,1.89563031]
[1763019617753,0.00013929,103700.0,103690.0,1.9056303]
[1763019617972,0.00013929,103700.0,103690.0,1.91563029]
[1763019618357,0.00137281,103720.0,103710.0,0.08341874]
[1763019618570,0.00137281,103720.0,103710.0,0.6433041]
[1763019618790,0.00137281,103720.0,103710.0,0.8509327]
[1763019619001,0.00137281,103720.0,103710.0,1.07271528]
[1763019619430,0.00137281,103720.0,103710.0,1.07164074]
[1763019631941,0.00137281,103720.0,103710.0,1.14497147]
[1763019635178,0.00137281,103720.0,103710.0,1.07164074]
[1763019635393,0.00137281,103720.0,103710.0,1.43164074]
[1763019635635,0.00137281,103720.0,103710.0,1.14442196]
[1763019636268,0.00137281,103720.0,103710.0,1.07164074]
[1763019636478,0.00137281,103720.0,103710.0,1.18736074]
[1763019636893,0.00137281,103720.0,103710.0,0.65731118]
[1763019637096,0.00137281,103720.0,103710.0,0.62837403]
[1763019637297,0.00137281,103720.0,103710.0,0.67179277]
[1763019637527,0.00137281,103720.0,103710.0,0.89357571]
[1763019637726,0.00137281,103720.0,103710.0,0.58501028]
[1763019637937,0.00137281,103720.0,103710.0,0.55607277]
[1763019638132,0.00137281,103720.0,103710.0,0.65179277]
[1763019638373,0.00137281,103720.0,103710.0,0.67179277]
[1763019638582,0.00137281,103720.0,103710.0,1.15949813]
[1763019641318,0.00137281,103720.0,103710.0,0.67179277]
[1763019641544,0.00137281,103720.0,103710.0,0.55607277]
[1763019641760,0.00137281,103720.0,103710.0,0.67179277]
[1763019643232,0.00137281,103720.0,103710.0,0.7089182]
[1763019643415,0.00137281,103720.0,103710.0,0.8646382]
[1763019643661,0.00137281,103720.0,103710.0,1.15949813]
[1763019644891,0.00137281,103720.0,103710.0,0.8246382]
[1763019645109,0.00137281,103720.0,103710.0,0.8646382]
[1763019645332,0.00137281,103720.0,103710.0,1.15949813]
[1763019647044,0.00137281,103720.0,103710.0,0.55607277]
[1763019647251,0.51483958,103720.0,103710.0,0.17499]
[1763019647443,0.32201274,103720.0,103710.0,0.07218]
[1763019647647,0.21997965,103720.0,103710.0,0.16995]
[1763019648325,0.02715281,103720.0,103710.0,0.16995]
[1763019648535,0.00137281,103720.0,103710.0,0.14995]
[1763019648680,0.00137281,103720.0,103710.0,0.16995]
[1763019648884,0.76301561,103720.0,103700.0,0.41125]
[1763019649085,0.22103798,103710.0,103700.0,0.62976239]
[1763019649292,0.46922877,103720.0,103710.0,0.1102]
[1763019649696,0.46922877,103720.0,103710.0,0.16797]
[1763019649951,0.44101763,103720.0,103710.0,0.16797]
[1763019650097,0.44101763,103720.0,103710.0,0.16767927]
[1763019650504,0.24819079,103720.0,103710.0,0.16767927]
[1763019650968,0.44101763,103720.0,103710.0,0.16767927]
[1763019651184,0.44101763,103720.0,103710.0,0.10990927]
[1763019651385,0.44201763,103720.0,103710.0,0.10990927]
[1763019651951,0.66305561,103720.0,103710.0,0.10990927]
[1763019652149,0.44201763,103720.0,103710.0,0.10990927]
[1763019652354,0.24919079,103720.0,103710.0,0.16767927]
[1763019653594,0.44201763,103720.0,103710.0,0.14767927]
[1763019654041,0.44201763,103720.0,103710.0,0.16767927]
[1763019654208,0.41623763,103720.0,103710.0,0.16767927]
[1763019654591,0.63727561,103720.0,103710.0,0.14767927]
[1763019654790,0.19284543,103710.0,103700.0,0.4892]
[1763019655018,0.65261139,103710.0,103700.0,0.1662]
[1763019655255,0.67599139,103710.0,103700.0,0.1662]
[1763019655601,0.73577139,103710.0,103700.0,0.02]
[1763019656011,0.73577139,103710.0,103700.0,0.04]
[1763019656904,0.73577139,103710.0,103700.0,0.02]
[1763019657145,0.73577139,103710.0,103700.0,0.04]
[1763019659308,0.73577139,103710.0,103700.0,0.02]
[1763019659715,0.19286403,103700.0,103690.0,0.40775]
[1763019659851,0.17091787,103700.0,103690.0,0.4663]
[1763019660255,0.17091787,103700.0,103690.0,0.4863]
[1763019660697,0.17091787,103700.0,103690.0,0.42853]
[1763019660871,0.21926787,103700.0,103690.0,0.021]
[1763019661086,0.72075383,103700.0,103690.0,0.001]
[1763019661325,0.72075383,103700.0,103690.0,0.021]
[1763019661326,0.27867787,103700.0,103690.0,0.021]
[1763019661522,0.72075383,103700.0,103690.0,0.021]
[1763019661898,0.72075383,103700.0,103690.0,0.022]
[1763019662097,0.49971585,103700.0,103690.0,0.022]
[1763019662276,0.44030585,103700.0,103690.0,0.10597]
[1763019662482,0.17925787,103700.0,103690.0,0.1623]
[1763019662882,0.19286403,103700.0,103690.0,0.1623]
[1763019663100,0.72166366,103710.0,103690.0,0.31518239]
[1763019663334,0.72166366,103710.0,103700.0,0.02]
[1763019663506,0.72166366,103710.0,103700.0,0.04]
[1763019663712,0.76167366,103710.0,103700.0,0.04]
[1763019663908,0.21053543,103710.0,103700.0,0.34333798]
[1763019664123,0.21053543,103710.0,103700.0,0.1623]
[1763019664552,0.67198695,103720.0,103710.0,0.02]
[1763019664713,0.19286235,103710.0,103690.0,0.39042]
[1763019664893,0.43079033,103710.0,103700.0,0.06719]
[1763019665092,0.20973543,103710.0,103700.0,0.38464798]
[1763019665743,0.001,103710.0,103700.0,0.6491047]
[1763019665948,0.001,103710.0,103700.0,1.16496873]
[1763019666157,0.19420084,103720.0,103700.0,0.9321047]
[1763019666357,0.19420084,103720.0,103710.0,0.16361]
[1763019667185,0.22027084,103720.0,103710.0,0.10596]
[1763019667412,0.22127084,103720.0,103710.0,0.08596]
[1763019667593,0.22127084,103720.0,103710.0,0.10596]
[1763019667792,0.47831882,103720.0,103710.0,0.08596]
[1763019668321,0.47831882,103720.0,103710.0,0.10596]
[1763019668533,0.47931882,103720.0,103710.0,0.10596]
[1763019668693,0.47831882,103720.0,103710.0,0.10596]
[1763019668895,0.48031882,103720.0,103710.0,0.10596]
[1763019669115,0.48031882,103720.0,103710.0,0.08596]
[1763019669320,0.48031882,103720.0,103710.0,0.10596]
[1763019670108,0.41823882,103720.0,103710.0,0.16361]
[1763019670541,0.41823882,103720.0,103710.0,0.14361]
[1763019670769,0.19720084,103720.0,103710.0,0.14361]
[1763019670972,0.41823882,103720.0,103710.0,0.16361]
[1763019671142,0.19720084,103720.0,103710.0,0.16361]
[1763019671601,0.41823882,103720.0,103710.0,0.16361]
[1763019671925,0.00437281,103720.0,103710.0,0.16361]
[1763019672328,0.19719965,103720.0,103710.0,0.16361]
[1763019672969,0.22541079,103720.0,103710.0,0.16361]
[1763019673173,0.00437281,103720.0,103710.0,0.16361]
[1763019673588,0.19719965,103720.0,103710.0,0.16361]
[1763019674140,0.00437281,103720.0,103710.0,0.33645543]
[1763019674351,0.00437281,103720.0,103710.0,0.35645543]
[1763019674695,0.00437281,103720.0,103710.0,0.57749341]
[1763019674900,0.00149262,103720.0,103710.0,0.79853139]
[1763019675730,0.65284578,103740.0,103710.0,0.75853139]
[1763019675943,0.65298078,103740.0,103720.0,0.12484]
[1763019676110,0.65298078,103740.0,103730.0,0.02]
[1763019676306,0.65298078,103740.0,103730.0,0.04]
[1763019676708,0.68899078,103740.0,103730.0,0.04]
[1763019678295,0.68999078,103740.0,103730.0,0.04]
[1763019678550,0.69099078,103740.0,103730.0,0.04]
[1763019679153,0.69099078,103740.0,103730.0,0.06719]
[1763019679365,0.65498078,103740.0,103730.0,0.16361]
[1763019680816,0.21290482,103740.0,103730.0,0.16361]
[1763019681060,0.4339428,103740.0,103730.0,0.16361]
[1763019681674,0.43442644,103740.0,103730.0,0.16361]
[1763019682840,0.65546442,103740.0,103730.0,0.14361]
[1763019683076,0.43442644,103740.0,103730.0,0.16361]
[1763019683824,0.65546442,103740.0,103730.0,0.16361]
[1763019685193,0.65546442,103740.0,103730.0,0.10596]
[1763019687095,0.65546442,103740.0,103730.0,0.08596]
[1763019687475,0.65546442,103740.0,103730.0,0.10596]
[1763019688185,0.65546442,103740.0,103730.0,0.08596]
[1763019688357,0.65546442,103740.0,103730.0,0.10596]
[1763019689017,0.21338846,103740.0,103730.0,0.16361]
[1763019689263,0.65546442,103740.0,103730.0,0.08596]
[1763019689475,0.65546442,103740.0,103730.0,0.10596]
[1763019689733,0.21338846,103740.0,103730.0,0.10596]
[1763019689939,0.00261864,103740.0,103730.0,0.1607]
[1763019690141,0.1954083,103740.0,103730.0,0.1607]
[1763019690365,0.00261864,103740.0,103730.0,0.35350825]
[1763019690574,0.1954083,103740.0,103730.0,0.1607]
[1763019691103,0.41644628,103740.0,103730.0,0.1607]
[1763019691257,0.41644628,103740.0,103730.0,0.1407]
[1763019691842,0.41644628,103740.0,103730.0,0.1607]
[1763019692907,0.1954083,103740.0,103730.0,0.1607]
[1763019693108,0.41644628,103740.0,103730.0,0.1607]
[1763019694769,0.41644628,103740.0,103730.0,0.1207]
[1763019695224,0.41644628,103740.0,103730.0,0.1607]
[1763019695454,0.1954083,103740.0,103730.0,0.35350825]
[1763019695673,0.41644628,103740.0,103730.0,0.35350825]
[1763019696128,0.41644628,103740.0,103730.0,0.1607]
[1763019697070,0.41644628,103740.0,103730.0,0.35350825]
[1763019697290,0.22365662,103740.0,103730.0,0.35350825]
[1763019697494,0.41644628,103740.0,103730.0,0.35350825]
[1763019698337,0.22365662,103740.0,103730.0,0.35350825]
[1763019698516,0.41644628,103740.0,103730.0,0.1607]
[1763019698953,0.00261864,103740.0,103730.0,0.57454623]
[1763019699173,0.00261864,103740.0,103730.0,1.06004093]
[1763019699378,0.00089545,103740.0,103730.0,1.14100694]
[1763019699585,0.00089545,103740.0,103730.0,1.20993728]
[1763019699795,0.00089545,103740.0,103730.0,1.43097526]
[1763019700025,0.00048364,103740.0,103730.0,1.43097526]
[1763019700225,0.00148364,103740.0,103730.0,1.43097526]
[1763019700452,0.00148364,103740.0,103730.0,1.43197526]
[1763019701281,0.00048364,103740.0,103730.0,1.43197526]
[1763019701468,0.00048364,103740.0,103730.0,1.43297526]
[1763019702683,0.00048364,103740.0,103730.0,1.54869526]
[1763019703296,0.00048364,103740.0,103730.0,1.94869526]
[1763019703496,0.00048364,103740.0,103730.0,2.02253957]
[1763019706384,0.00048364,103740.0,103730.0,1.62253957]
[1763019707355,0.00016517,103740.0,103730.0,1.62253957]
[1763019708625,0.00016517,103740.0,103730.0,2.28565351]
[1763019708943,0.00016517,103740.0,103730.0,1.94823767]
[1763019710541,0.00016517,103740.0,103730.0,1.35942563]
[1763019710753,0.00016517,103740.0,103730.0,1.65383165]
[1763019711620,0.00016517,103740.0,103730.0,1.94823767]
[1763019713827,0.00016517,103740.0,103730.0,1.24370563]
[1763019714085,0.19295483,103740.0,103730.0,0.17063433]
[1763019714312,0.00016517,103740.0,103730.0,0.8135286]
[1763019714526,0.00016517,103740.0,103730.0,1.17994734]
[1763019714743,0.00016517,103740.0,103730.0,0.85694734]
[1763019714959,0.00016517,103740.0,103730.0,1.13994734]
[1763019715172,0.00016517,103740.0,103730.0,1.17994734]
[1763019715408,5.645e-05,103740.0,103730.0,1.17994734]
[1763019715611,5.645e-05,103740.0,103730.0,1.13994734]
[1763019715817,5.645e-05,103740.0,103730.0,1.17994734]
[1763019717133,5.645e-05,103740.0,103730.0,1.13994734]
[1763019717342,5.645e-05,103740.0,103730.0,1.25046631]
[1763019719484,5.645e-05,103740.0,103730.0,1.21046631]
[1763019719693,5.645e-05,103740.0,103730.0,1.17994734]
[1763019723607,0.17089287,103750.0,103740.0,0.81718476]
[1763019724198,0.17089287,103750.0,103740.0,0.84611515]
[1763019724757,0.17089287,103750.0,103740.0,0.84711515]
[1763019727797,0.17089287,103750.0,103740.0,0.55270913]
[1763019727998,0.17089287,103750.0,103740.0,0.84711515]
[1763019728410,0.17089287,103750.0,103740.0,0.82711515]
[1763019728622,0.17089287,103750.0,103740.0,0.84711515]
[1763019729016,0.17113463,103750.0,103740.0,0.84711515]
[1763019729500,0.17113463,103750.0,103740.0,1.03990481]
[1763019729734,0.17113463,103750.0,103740.0,0.50929039]
[1763019729956,0.19137463,103750.0,103740.0,0.72008602]
[1763019730182,0.19137463,103750.0,103740.0,0.45953]
[1763019730399,0.19137463,103750.0,103740.0,0.001]
[1763019730400,0.57501065,103750.0,103740.0,0.001]
[1763019730632,0.57501065,103750.0,103740.0,0.06312]
[1763019730853,0.57501065,103750.0,103740.0,0.021]
[1763019731081,0.57501065,103750.0,103740.0,0.06312]
[1763019731549,0.57501065,103750.0,103740.0,0.08312]
[1763019731765,0.57601065,103750.0,103740.0,0.06312]
[1763019731982,0.57601065,103750.0,103740.0,0.06212]
[1763019732195,0.57601065,103750.0,103740.0,0.08212]
[1763019732406,0.57601065,103750.0,103740.0,0.04]
[1763019732622,0.57601065,103750.0,103740.0,0.08212]
[1763019733714,0.57601065,103750.0,103740.0,0.06212]
[1763019734930,0.57601065,103750.0,103740.0,0.04212]
[1763019735162,0.57601065,103750.0,103740.0,0.08212]
[1763019736237,0.28160463,103750.0,103740.0,0.08212]
[1763019736458,0.57601065,103750.0,103740.0,0.06212]
[1763019736681,0.57601065,103750.0,103740.0,0.08212]
[1763019737008,0.57601065,103750.0,103740.0,0.27490966]
[1763019737270,0.19237463,103750.0,103740.0,0.38835966]
[1763019737679,0.19237463,103750.0,103740.0,0.33450966]
[1763019737840,0.22859463,103750.0,103740.0,0.33450966]
[1763019738043,0.22859463,103750.0,103740.0,0.14172]
[1763019738247,0.22859463,103750.0,103740.0,0.10769]
[1763019738937,0.57601065,103750.0,103740.0,0.10769]
[1763019739180,0.52300065,103750.0,103740.0,0.10769]
[1763019739784,0.22859463,103750.0,103740.0,0.10769]
[1763019739993,0.22859463,103750.0,103740.0,0.30047966]
[1763019741357,0.02148176,103750.0,103740.0,0.38835966]
[1763019741564,0.00124176,103750.0,103740.0,0.72618442]
[1763019742359,0.00024176,103750.0,103740.0,0.72618442]
[1763019742780,0.00024176,103750.0,103740.0,0.4317784]
[1763019742997,0.00024176,103750.0,103740.0,0.72718442]
[1763019743829,0.19301284,103750.0,103740.0,0.23998874]
[1763019744033,0.19301284,103750.0,103740.0,0.21998874]
[1763019744237,0.19301284,103750.0,103740.0,0.23998874]
[1763019745558,0.19301284,103750.0,103740.0,0.4327784]
[1763019746280,0.00024176,103750.0,103740.0,0.4327784]
[1763019746446,0.19301284,103750.0,103740.0,0.4327784]
[1763019747060,0.00024176,103750.0,103740.0,0.4327784]
[1763019747271,0.19301284,103750.0,103740.0,0.4327784]
[1763019747889,0.19301284,103750.0,103740.0,0.72718442]
[1763019748095,0.00024176,103750.0,103740.0,0.72718442]
[1763019748856,0.19301284,103750.0,103740.0,0.72718442]
[1763019749526,0.00024176,103750.0,103740.0,1.01018442]
[1763019749738,0.00024176,103750.0,103740.0,1.05018442]
[1763019750379,0.00024176,103750.0,103740.0,1.07911476]
[1763019750613,0.21811411,103770.0,103760.0,0.04]
[1763019750827,0.51252013,103770.0,103750.0,0.59738232]
[1763019750964,0.21658155,103770.0,103760.0,0.06514]
[1763019751180,0.20847393,103770.0,103760.0,0.3232125]
[1763019751412,0.20847393,103770.0,103760.0,0.3432125]
[1763019752064,0.20947393,103770.0,103760.0,0.3432125]
[1763019752287,0.002,103770.0,103760.0,0.63761852]
[1763019752493,0.002,103770.0,103760.0,0.3432125]
[1763019752885,0.002,103770.0,103760.0,1.03296247]
[1763019753102,0.001,103770.0,103760.0,1.03296247]
[1763019753304,0.002,103770.0,103760.0,1.03296247]
[1763019753509,0.001,103770.0,103760.0,1.03296247]
[1763019753715,0.19373393,103770.0,103760.0,1.03296247]
[1763019754150,0.001,103770.0,103760.0,1.03296247]
[1763019754583,0.19373393,103770.0,103760.0,1.03296247]
[1763019755016,0.001,103770.0,103760.0,1.03296247]
[1763019755231,0.001,103770.0,103760.0,0.96403726]
[1763019755456,0.001,103770.0,103760.0,0.61255874]
[1763019755674,0.19373393,103770.0,103760.0,0.63255874]
[1763019756076,0.19273393,103770.0,103760.0,0.63255874]
[1763019756294,0.19321736,103770.0,103760.0,0.51687874]
[1763019756464,0.19321736,103770.0,103760.0,0.71063124]
[1763019756685,0.19321736,103770.0,103760.0,0.71263124]
[1763019756870,0.19321736,103770.0,103760.0,0.51887874]
[1763019757095,0.19321736,103770.0,103760.0,0.70963124]
[1763019757341,0.19321736,103770.0,103760.0,0.71063124]
[1763019757986,0.19321736,103770.0,103760.0,0.51787874]
[1763019758220,0.00048343,103770.0,103760.0,1.00503726]
[1763019758409,0.19321736,103770.0,103760.0,1.00503726]
[1763019758634,0.00048343,103770.0,103760.0,1.00503726]
[1763019759694,0.00048343,103770.0,103760.0,1.00482705]
[1763019762467,0.19321736,103770.0,103760.0,1.00482705]
[1763019762795,0.00048343,103770.0,103760.0,1.00482705]
[1763019763319,0.00048343,103770.0,103760.0,0.96482705]
[1763019763532,0.00016815,103770.0,103760.0,1.00482705]
[1763019764356,0.00016815,103770.0,103760.0,1.29923307]